fUSD/lending_fUSD_20251117
["ID","MTS","AMOUNT","RATE_DAILY","PERIOD"]
[394262273,1763411481107,-500.0,0.00041095,30]
[394262274,1763411481119,-500.0,0.00041095,30]
[394262275,1763411481128,-500.0,0.00041095,30]
[394262276,1763411481137,-500.0,0.00041095,30]
[394262277,1763411481146,-500.0,0.00041095,30]
[394262278,1763411481155,-500.0,0.00041095,30]
[394262279,1763411481165,-500.0,0.00041095,30]
[394262280,1763411481174,-500.0,0.00041095,30]
[394262281,1763411481183,-500.0,0.00041095,30]
[394262282,1763411481192,-228.03039072,0.00041095,30]
[394262283,1763411481201,-500.0,0.00041095,30]
[394262284,1763411481212,-235.55985132,0.00041095,30]
[394262285,1763411481221,-500.0,0.00041095,30]
[394262286,1763411481230,-500.0,0.00041095,30]
[394262287,1763411481239,-500.0,0.00041095,30]
[394262288,1763411481248,-293.94959815,0.00041095,30]
[394262289,1763411481257,-500.0,0.00041095,30]
[394262290,1763411481266,-247.87435674,0.00041095,30]
[394262291,1763411481275,-500.0,0.00041095,30]
[394262292,1763411481284,-500.0,0.00041095,30]
[394262293,1763411481293,-500.0,0.00041095,30]
[394262294,1763411481302,-500.0,0.00041095,30]
[394262295,1763411481312,-500.0,0.00041095,30]
[394262296,1763411481321,-500.0,0.00041095,30]
[394262297,1763411481330,-413.78765856,0.00041095,30]
[394262298,1763411481339,-513.00755542,0.00041095,30]
[394262299,1763411481348,-500.0,0.00041095,30]
[394262300,1763411481357,-500.0,0.00041095,30]
[394262301,1763411481366,-343.08690005,0.00041095,30]
[394262302,1763411481376,-400.0,0.00041095,30]
[394262303,1763411481385,-500.0,0.00041095,30]
[394262304,1763411481394,-500.0,0.00041095,30]
[394262305,1763411481403,-500.0,0.00041095,30]
[394262306,1763411481412,-500.0,0.00041095,30]
[394262307,1763411481421,-500.0,0.00041095,30]
[394262308,1763411481430,-500.0,0.00041095,30]
[394262309,1763411481440,-500.0,0.00041095,30]
[394262310,1763411481449,-513.65328999,0.00041095,30]
[394262311,1763411481460,-500.0,0.00041095,30]
[394262312,1763411481470,-500.0,0.00041095,30]
[394262313,1763411481480,-500.0,0.00041095,30]
[394262314,1763411481489,-630.74345409,0.00041095,30]
[394262315,1763411481498,-324.77854206,0.00041095,30]
[394262316,1763411481507,-500.0,0.00041095,30]
[394262317,1763411481516,-500.0,0.00041095,30]
[394262318,1763411481526,-500.0,0.00041095,30]
[394262319,1763411481535,-582.07,0.00041095,30]
[394262320,1763411481544,-500.0,0.00041095,30]
[394262321,1763411481553,-500.0,0.00041095,30]
[394262322,1763411481563,-523.52891731,0.00041095,30]
[394262323,1763411481571,-494.4194225,0.00041095,30]
[394262324,1763411481581,-500.0,0.00041095,30]
[394262325,1763411481591,-500.0,0.00041095,30]
[394262326,1763411481600,-500.0,0.00041095,30]
[394262327,1763411481609,-584.22876764,0.00041095,30]
[394262328,1763411481619,-500.0,0.00041095,30]
[394262329,1763411481629,-500.0,0.00041095,30]
[394262330,1763411481638,-500.0,0.00041095,30]
[394262331,1763411481647,-500.0,0.00041095,30]
[394262332,1763411481656,-500.0,0.00041095,30]
[394262333,1763411481666,-500.0,0.00041095,30]
[394262334,1763411481675,-500.0,0.00041095,30]
[394262335,1763411481684,-500.0,0.00041095,30]
[394262336,1763411481693,-500.0,0.00041095,30]
[394262337,1763411481703,-500.0,0.00041095,30]
[394262338,1763411481715,-500.0,0.00041095,30]
[394262339,1763411481725,-407.5769863,0.00041095,30]
[394262340,1763411481734,-645.44688612,0.00041095,30]
[394262341,1763411481744,-500.0,0.00041095,30]
[394262342,1763411481754,-500.0,0.00041095,30]
[394262343,1763411481764,-500.0,0.00041095,30]
[394262344,1763411481774,-500.0,0.00041095,30]
[394262345,1763411481784,-500.0,0.00041095,30]
[394262346,1763411481794,-500.0,0.00041095,30]
[394262347,1763411481805,-500.0,0.00041095,30]
[394262348,1763411481815,-500.0,0.00041095,30]
[394262349,1763411481825,-500.0,0.00041095,30]
[394262350,1763411481835,-500.0,0.00041095,30]
[394262351,1763411481845,-500.0,0.00041095,30]
[394262352,1763411481855,-500.0,0.00041095,30]
[394262353,1763411481864,-500.0,0.00041095,30]
[394262354,1763411481874,-500.0,0.00041095,30]
[394262355,1763411481883,-411.15547886,0.00041095,30]
[394262356,1763411481893,-500.0,0.00041095,30]
[394262357,1763411481902,-500.0,0.00041095,30]
[394262358,1763411481912,-500.0,0.00041095,30]
[394262359,1763411481922,-500.0,0.00041095,30]
[394262360,1763411481932,-500.0,0.00041095,30]
[394262361,1763411481941,-500.0,0.00041095,30]
[394262362,1763411482112,-500.0,0.00041095,30]
[394262363,1763411482137,-500.0,0.00041095,30]
[394262364,1763411482147,-500.0,0.00041095,30]
[394262365,1763411482158,-233.27215394,0.00041095,30]
[394262366,1763411482167,-500.0,0.00041095,30]
[394262367,1763411482176,-500.0,0.00041095,30]
[394262368,1763411482187,-164.76486925,0.00041095,30]
[394262369,1763411482196,-500.0,0.00041095,30]
[394262370,1763411482206,-500.0,0.00041095,30]
[394262371,1763411482216,-484.62769724,0.00041095,30]
[394262372,1763411482225,-370.59170639,0.00041095,30]
[394262373,1763411482234,-500.0,0.00041095,30]
[394262374,1763411482244,-508.28872897,0.00041095,30]
[394262375,1763411482255,-506.58182659,0.00041095,30]
[394262376,1763411482264,-500.0,0.00041095,30]
[394262377,1763411482274,-500.0,0.00041095,30]
[394262378,1763411482283,-500.0,0.00041095,30]
[394262379,1763411482293,-309.98659018,0.00041095,30]
[394262380,1763411482302,-500.0,0.00041095,30]
[394262381,1763411482311,-500.0,0.00041095,30]
[394262382,1763411482321,-500.0,0.00041095,30]
[394262383,1763411482330,-500.0,0.00041095,30]
[394262384,1763411482339,-500.0,0.00041095,30]
[394262385,1763411482348,-500.0,0.00041095,30]
[394262386,1763411482358,-510.65640886,0.00041095,30]
[394262387,1763411482367,-500.0,0.00041095,30]
[394262388,1763411482376,-500.0,0.00041095,30]
[394262389,1763411482386,-500.0,0.00041095,30]
[394262390,1763411482395,-513.4590352,0.00041095,30]
[394262391,1763411482405,-169.02460239,0.00041095,30]
[394262392,1763411482414,-500.0,0.00041095,30]
[394262393,1763411482423,-500.0,0.00041095,30]
[394262395,1763411482434,-500.0,0.00041095,30]
[394262396,1763411482443,-500.0,0.00041095,30]
[394262397,1763411482452,-500.0,0.00041095,30]
[394262398,1763411482465,-500.0,0.00041095,30]
[394262399,1763411482475,-500.0,0.00041095,30]
[394262400,1763411482484,-500.0,0.00041095,30]
[394262401,1763411482493,-500.0,0.00041095,30]
[394262402,1763411482503,-500.0,0.00041095,30]
[394262403,1763411482513,-510.0440058,0.00041095,30]
[394262404,1763411482523,-500.0,0.00041095,30]
[394262405,1763411482533,-500.0,0.00041095,30]
[394262406,1763411482543,-500.0,0.00041095,30]
[394262407,1763411482553,-500.0,0.00041095,30]
[394262408,1763411482564,-500.0,0.00041095,30]
[394262409,1763411482574,-500.0,0.00041095,30]
[394262410,1763411482584,-643.61001735,0.00041095,30]
[394262411,1763411482594,-500.0,0.00041095,30]
[394262412,1763411482603,-500.0,0.00041095,30]
[394262413,1763411482613,-507.17372293,0.00041095,30]
[394262414,1763411482622,-500.0,0.00041095,30]
[394262415,1763411482631,-503.25584325,0.00041095,30]
[394262416,1763411482641,-500.0,0.00041095,30]
[394262417,1763411482651,-500.0,0.00041095,30]
[394262418,1763411482661,-500.0,0.00041095,30]
[394262419,1763411482670,-500.0,0.00041095,30]
[394262421,1763411482679,-500.0,0.00041095,30]
[394262422,1763411482689,-500.0,0.00041095,30]
[394262423,1763411482698,-500.0,0.00041095,30]
[394262424,1763411482710,-500.0,0.00041095,30]
[394262425,1763411482720,-500.0,0.00041095,30]
[394262426,1763411482730,-434.67713941,0.00041095,30]
[394262427,1763411482740,-500.0,0.00041095,30]
[394262428,1763411482750,-500.0,0.00041095,30]
[394262429,1763411482759,-151.0,0.00041095,120]
[394262430,1763411482768,-500.0,0.00041095,30]
[394262431,1763411482778,-500.0,0.00041095,30]
[394262432,1763411482788,-151.0,0.00041095,120]
[394262433,1763411482798,-500.0,0.00041095,30]
[394262434,1763411482807,-500.0,0.00041095,30]
[394262435,1763411482817,-596.33680048,0.00041095,30]
[394262436,1763411482827,-500.0,0.00041095,30]
[394262437,1763411482837,-413.54211946,0.00041095,30]
[394262438,1763411482847,-500.0,0.00041095,30]
[394262439,1763411482857,-151.0,0.00041095,120]
[394262440,1763411482868,-500.0,0.00041095,30]
[394262441,1763411482878,-500.0,0.00041095,30]
[394262442,1763411482888,-151.0,0.00041095,120]
[394262443,1763411482898,-502.77428116,0.00041095,30]
[394262444,1763411482908,-500.0,0.00041095,30]
[394262445,1763411482917,-151.0,0.00041095,120]
[394262446,1763411482927,-500.0,0.00041095,30]
[394262447,1763411482936,-151.0,0.00041095,120]
[394262448,1763411482946,-500.0,0.00041095,30]
[394262449,1763411482958,-151.0,0.00041095,120]
[394262450,1763411482967,-284.463112,0.00041095,120]
[394262451,1763411482977,-500.0,0.00041095,30]
[394262452,1763411482986,-151.0,0.00041095,120]
[394262453,1763411482996,-500.0,0.00041095,30]
[394262454,1763411483005,-374.83891019,0.00041095,30]
[394262455,1763411483015,-500.0,0.00041095,30]
[394262456,1763411483024,-500.0,0.00041095,30]
[394262457,1763411483033,-510.35718965,0.00041095,30]
[394262458,1763411483043,-500.0,0.00041095,30]
[394262459,1763411483052,-500.0,0.00041095,30]
[394262460,1763411483062,-500.0,0.00041095,30]
[394262461,1763411483071,-500.0,0.00041095,30]
[394262462,1763411483081,-500.0,0.00041095,30]
[394262463,1763411483090,-500.0,0.00041095,30]
[394262464,1763411483100,-500.0,0.00041095,30]
[394262465,1763411483110,-425.44964429,0.00041095,30]
[394262466,1763411483123,-500.0,0.00041095,30]
[394262467,1763411483133,-500.0,0.00041095,30]
[394262468,1763411483142,-500.0,0.00041095,30]
[394262469,1763411483152,-500.0,0.00041095,30]
[394262470,1763411483163,-500.0,0.00041095,30]
[394262471,1763411483173,-500.0,0.00041095,30]
[394262472,1763411483183,-500.0,0.00041095,30]
[394262473,1763411483196,-500.0,0.00041095,30]
[394262474,1763411483209,-450.04479073,0.00041095,30]
[394262475,1763411483219,-500.0,0.00041095,30]
[394262476,1763411483229,-168.07740666,0.00041095,30]
[394262477,1763411483239,-500.0,0.00041095,30]
[394262478,1763411483248,-500.0,0.00041095,30]
[394262479,1763411483258,-500.0,0.00041095,30]
[394262480,1763411483268,-500.0,0.00041095,30]
[394262481,1763411483277,-251.77662326,0.00041095,30]
[394262484,1763411484889,-221.61986,0.0003979,120]
[394262485,1763411484898,-247.90715879,0.00041095,30]
[394262486,1763411484907,-264.99067081,0.00041095,30]
[394262488,1763411485379,-151.0,0.000249,7]
[394262489,1763411485389,-188.067985,0.000249,7]
[394262490,1763411485398,-151.0,0.000249,7]
[394262491,1763411485408,-181.35682927,0.000249,7]
[394262492,1763411485419,-6.71115573,0.000249,7]
[394262493,1763411485429,-188.067985,0.00039679,120]
[394262494,1763411485439,-60.79871254,0.00039679,120]
[394262495,1763411485459,-641.100018,0.00032493,2]
[394262496,1763411485783,-188.067985,0.000249,7]
[394262497,1763411485791,-278.08429901,0.00032493,2]
[394262499,1763411488490,195.0,0.0002725,120]
[394262500,1763411488546,195.0,0.00024836,120]
[394262501,1763411488598,195.0,0.00027693,120]
[394262544,1763411512697,161.76317375,0.00017899,2]
[394262548,1763411521243,300.0,0.00017998,2]
[394262553,1763411566032,1200.0,0.00017998,2]
[394262554,1763411581716,550.0,0.00017998,2]
[394262555,1763411607786,6088.97,0.00030137,120]
[394262557,1763411701126,1200.0,0.00017998,2]
[394262558,1763411701780,300.0,0.00017998,2]
[394262559,1763411761731,550.0,0.00017998,2]
[394262560,1763411840153,161.76317374,0.00017899,2]
[394262561,1763411942142,300.0,0.00017998,2]
[394262562,1763412001199,300.0,0.00017998,2]
[394262563,1763412001257,324.0,0.00017998,2]
[394262564,1763412155523,161.76317374,0.00017899,2]
[394262970,1763412631451,-500.0,0.00017999,2]
[394262972,1763412631460,-500.0,0.00017999,2]
[394262974,1763412631469,-500.0,0.00017999,2]
[394262976,1763412631477,-156.67488001,0.00017999,2]
[394262977,1763412631494,-343.32511999,0.00017999,2]
[394262978,1763412631504,-500.0,0.00017999,2]
[394262979,1763412631513,-479.1746172,0.00023721,2]
[394262980,1763412631524,-4972.72181685,0.00025109,2]
[394262981,1763412631533,-500.0,0.00029315,2]
[394262982,1763412631543,-150.0,0.00031489,2]
[394262983,1763412631551,-158.88,0.00031489,2]
[394262984,1763412631560,-151.0,0.00031492,2]
[394262985,1763412631569,-151.0,0.00031492,2]
[394262986,1763412631580,-151.0,0.00031492,2]
[394262987,1763412631588,-151.0,0.00031492,2]
[394262988,1763412631598,-151.0,0.00031492,2]
[394262989,1763412631607,-151.0,0.00031492,2]
[394262990,1763412631616,-151.0,0.00031492,2]
[394262991,1763412631626,-150.99,0.00031511,2]
[394262992,1763412631636,-6014.61,0.00031511,2]
[394262993,1763412631646,-324.07,0.00031511,2]
[394262994,1763412631655,-7295.6749931,0.00031511,2]
[394262995,1763412631666,-1930.9250069,0.00031511,2]
[394262996,1763412631676,-3019.79806163,0.00031512,10]
[394262997,1763412631687,-2548.73865149,0.00031512,10]
[394262998,1763412631698,-356.67,0.00031512,10]
[394262999,1763412631709,-1016.37328688,0.00031512,10]
[394263000,1763412631720,-3231.96354465,0.00031512,2]
[394263001,1763412631731,-1171.87051943,0.00031512,2]
[394263002,1763412631741,-387.11639996,0.00031512,2]
[394263004,1763412631759,-5209.03953596,0.00031512,2]
[394263006,1763412631768,-193.4806984,0.00032,120]
[394263007,1763412631778,-182.57104163,0.00032,120]
[394263008,1763412631787,-188.04956781,0.00032,120]
[394263009,1763412631796,-267.41922561,0.00032,120]
[394263010,1763412631806,-299.39869357,0.00032,120]
[394263011,1763412631814,-200.78923967,0.00032,120]
[394263012,1763412631823,-206.67055926,0.00032,120]
[394263013,1763412631832,-849.64314101,0.00032,120]
[394263014,1763412631841,-175.27876095,0.00032,120]
[394263015,1763412631851,-196.78421098,0.00032,120]
[394263016,1763412631860,-182.57104163,0.00033,120]
[394263017,1763412631870,-849.64314101,0.00033,120]
[394263018,1763412631881,-196.78421098,0.00033,120]
[394263019,1763412631892,-18.87693153,0.00033342,2]
[394263020,1763412631907,-481.12306847,0.00033342,2]
[394263021,1763412631917,-4209.96466542,0.00033585,2]
[394263022,1763412631942,-289.14843026,0.00033585,2]
[394263023,1763412631954,-424.03752947,0.00033585,2]
[394263024,1763412631964,-182.57104163,0.000339,120]
[394263025,1763412631974,-849.64314101,0.000339,120]
[394263026,1763412631984,-931.037,0.00034046,37]
[394263027,1763412631994,-2025.03534061,0.00034722,5]
[394263028,1763412632003,-487.67594728,0.00034722,5]
[394263029,1763412632355,-649.15496028,0.00034722,5]
[394263030,1763412632371,-888.20443306,0.00034722,5]
[394263031,1763412632381,-166.66,0.00034782,30]
[394263032,1763412632391,-182.57104163,0.00035,120]
[394263033,1763412632400,-798.47962312,0.00035,120]
[394263034,1763412632411,-51.16351789,0.00035,120]
[394263035,1763412632420,-166.66,0.00035514,30]
[394263036,1763412632429,-200.0,0.00035919,2]
[394263037,1763412632438,-3225.17,0.00035934,2]
[394263038,1763412632447,-1123.38,0.00036,2]
[394263039,1763412632456,-849.64314101,0.00036,120]
[394263040,1763412632465,-221.78046353,0.00036032,2]
[394263041,1763412632474,-1444.0,0.00036106,2]
[394263042,1763412632483,-513.8,0.00036215,2]
[394263043,1763412632492,-830.0,0.00036219,7]
[394263044,1763412632505,-166.66,0.00036246,30]
[394263045,1763412632514,-1000.0,0.00036477,2]
[394263046,1763412632523,-150.0,0.000367,2]
[394263047,1763412632532,-157.26,0.00036739,2]
[394263048,1763412632542,-4161.98703757,0.00036742,2]
[394263049,1763412632553,-1791.31296243,0.00036742,2]
[394263050,1763412632562,-1000.0,0.00036763,2]
[394263051,1763412632571,-250.0,0.00036839,2]
[394263052,1763412632580,-11.12922984,0.00036851,120]
[394263053,1763412632592,-199.17077016,0.00036851,120]
[394263054,1763412632601,-5000.0,0.00036877,2]
[394263055,1763412632610,-1233.21,0.00036952,120]
[394263056,1763412632619,-150.0,0.00036962,7]
[394263057,1763412632628,-150.0,0.00036962,7]
[394263058,1763412632639,-150.0,0.00036962,7]
[394263059,1763412632649,-12.73015935,0.00036962,7]
[394263060,1763412632660,-137.26984065,0.00036962,7]
[394263061,1763412632670,-150.0,0.00036962,7]
[394263062,1763412632679,-150.0,0.00036962,7]
[394263063,1763412632688,-150.0,0.00036962,7]
[394263064,1763412632697,-150.0,0.00036962,7]
[394263065,1763412632707,-150.0,0.00036962,7]
[394263066,1763412632717,-150.0,0.00036962,7]
[394263067,1763412632726,-142.98556133,0.00036962,7]
[394263129,1763412637432,-7.01443867,0.00036962,7]
[394263131,1763412637442,-150.0,0.00036962,7]
[394263133,1763412637451,-166.66,0.00036978,30]
[394263135,1763412637461,-367.53352547,0.00037191,120]
[394263136,1763412637493,-260.00000002,0.00037191,120]
[394263137,1763412637511,-202.46647451,0.00037191,120]
[394263138,1763412637520,-830.0,0.0003729,120]
[394263139,1763412637529,-830.0,0.00037345,7]
[394263140,1763412637538,-1246.10048351,0.00037503,2]
[394263145,1763412639493,-4367.09951649,0.00037503,2]
[394263146,1763412639513,-697.35,0.00037506,2]
[394263147,1763412639524,-3863.5563923,0.00037585,2]
[394263148,1763412639534,-1852.42,0.00037609,2]
[394263149,1763412639546,-166.66,0.00037711,30]
[394263150,1763412639556,-128.0456818,0.00037783,7]
[394263151,1763412639569,-21.9543182,0.00037783,7]
[394263152,1763412639579,-830.0,0.00037805,2]
[394263153,1763412639589,-209.39696604,0.0003787,2]
[394263154,1763412639599,-830.0,0.00037919,2]
[394263155,1763412639608,-150.0,0.00037988,7]
[394263156,1763412639618,-512.0,0.00038254,2]
[394263157,1763412639628,-150.0,0.00038331,7]
[394263158,1763412639641,-150.0,0.00038331,7]
[394263159,1763412639651,-150.0,0.00038331,7]
[394263160,1763412639661,-830.0,0.00038342,7]
[394263161,1763412639671,-450.0,0.00038352,7]
[394263162,1763412639681,-150.0,0.00038352,7]
[394263163,1763412639691,-166.66,0.00038443,30]
[394263164,1763412639701,-830.0,0.00038464,2]
[394263165,1763412639712,-830.0,0.00038471,2]
[394263166,1763412639723,-512.0,0.00038594,7]
[394263167,1763412639734,-150.0,0.00038604,7]
[394263168,1763412639748,-769.33690345,0.0003873,2]
[394263169,1763412639758,-152.0,0.00038971,3]
[394263170,1763412639768,-150.0,0.00039015,7]
[394263171,1763412639778,-150.0,0.00039015,7]
[394263172,1763412639788,-150.0,0.00039015,7]
[394263173,1763412639798,-157.26,0.00039035,2]
[394263174,1763412639808,-150.0,0.00039426,7]
[394263175,1763412639819,-150.0,0.000397,7]
[394263176,1763412639829,-150.0,0.000397,7]
[394263177,1763412639840,-150.0,0.000397,7]
[394263178,1763412639850,-512.0,0.00039793,120]
[394263179,1763412639861,-7873.72438523,0.00039797,2]
[394263180,1763412639871,-607.54870183,0.00039873,5]
[394263181,1763412639881,-164.63349725,0.00039873,2]
[394263183,1763412639892,-500.0,0.00039873,5]
[394263184,1763412639903,-193.96457223,0.00039896,2]
[394263185,1763412639913,-267.97665405,0.00039896,15]
[394263186,1763412639923,-502.86212758,0.00039896,31]
[394263187,1763412639933,-552.16510927,0.00039896,31]
[394263188,1763412639944,-502.86212758,0.00039896,31]
[394263189,1763412639953,-502.86212758,0.00039896,31]
[394263190,1763412639963,-502.86212758,0.00039896,31]
[394263191,1763412639973,-502.86212758,0.00039896,31]
[394263192,1763412639983,-502.86212758,0.00039896,31]
[394263193,1763412639993,-502.86212758,0.00039896,31]
[394263194,1763412640003,-502.86212758,0.00039896,31]
[394263195,1763412640013,-502.86212758,0.00039896,31]
[394263196,1763412640023,-502.86212758,0.00039896,31]
[394263197,1763412640033,-502.86212758,0.00039896,31]
[394263198,1763412640043,-502.86212758,0.00039896,31]
[394263199,1763412640052,-502.86212758,0.00039896,31]
[394263200,1763412640062,-502.86212758,0.00039896,31]
[394263201,1763412640071,-502.86212758,0.00039896,31]
[394263202,1763412640081,-502.86212758,0.00039896,31]
[394263203,1763412640091,-502.86212758,0.00039896,31]
[394263204,1763412640100,-502.86212758,0.00039896,31]
[394263205,1763412640109,-502.86212758,0.00039896,31]
[394263206,1763412640118,-502.86212758,0.00039896,31]
[394263207,1763412640128,-502.86212758,0.00039896,31]
[394263208,1763412640140,-502.86212758,0.00039896,31]
[394263209,1763412640150,-502.86212758,0.00039896,31]
[394263210,1763412640160,-502.86212758,0.00039896,31]
[394263211,1763412640170,-502.86212758,0.00039896,31]
[394263212,1763412640180,-502.86212758,0.00039896,31]
[394263213,1763412640190,-502.86212758,0.00039896,31]
[394263214,1763412640199,-502.86212758,0.00039896,31]
[394263215,1763412640209,-502.86212758,0.00039896,31]
[394263216,1763412640218,-502.86212758,0.00039896,31]
[394263217,1763412640227,-502.86212758,0.00039896,31]
[394263218,1763412640237,-502.86212758,0.00039896,31]
[394263219,1763412640246,-502.86212758,0.00039896,31]
[394263220,1763412640255,-502.86212758,0.00039896,31]
[394263221,1763412640265,-502.86212758,0.00039896,31]
[394263222,1763412640274,-502.86212758,0.00039896,31]
[394263223,1763412640284,-502.86212758,0.00039896,31]
[394263224,1763412640300,-502.86212758,0.00039896,31]
[394263225,1763412640310,-502.86212758,0.00039896,31]
[394263226,1763412640319,-502.86212758,0.00039896,31]
[394263227,1763412640328,-502.86212758,0.00039896,31]
[394263228,1763412640338,-502.86212758,0.00039896,31]
[394263229,1763412640347,-500.0,0.00039896,31]
[394263230,1763412640357,-500.0,0.00039896,31]
[394263231,1763412640367,-500.0,0.00039896,31]
[394263232,1763412640376,-500.0,0.00039896,31]
[394263233,1763412640387,-500.0,0.00039896,31]
[394263234,1763412640396,-500.0,0.00039896,31]
[394263235,1763412640406,-500.0,0.00039896,31]
[394263236,1763412640416,-500.0,0.00039896,31]
[394263237,1763412640425,-500.0,0.00039896,31]
[394263238,1763412640434,-500.0,0.00039896,31]
[394263239,1763412640445,-500.0,0.00039896,31]
[394263240,1763412640454,-500.0,0.00039896,31]
[394263241,1763412640464,-500.0,0.00039896,31]
[394263242,1763412640475,-500.0,0.00039896,31]
[394263243,1763412640484,-500.0,0.00039896,31]
[394263244,1763412640493,-500.0,0.00039896,31]
[394263245,1763412640503,-500.0,0.00039896,31]
[394263246,1763412640515,-500.0,0.00039896,31]
[394263247,1763412640524,-500.0,0.00039896,31]
[394263248,1763412640534,-500.0,0.00039896,31]
[394263249,1763412640544,-500.0,0.00039896,31]
[394263250,1763412640554,-500.0,0.00039896,31]
[394263251,1763412640563,-500.0,0.00039896,31]
[394263252,1763412640573,-500.0,0.00039896,31]
[394263253,1763412640584,-500.0,0.00039896,31]
[394263254,1763412640593,-500.0,0.00039896,31]
[394263255,1763412640602,-500.0,0.00039896,31]
[394263256,1763412640612,-500.0,0.00039896,31]
[394263257,1763412640621,-500.0,0.00039896,31]
[394263258,1763412640630,-500.0,0.00039896,31]
[394263259,1763412640643,-176.21982672,0.00039896,31]
[394263260,1763412640652,-500.0,0.00039896,31]
[394263261,1763412640661,-500.0,0.00039896,31]
[394263262,1763412640671,-500.0,0.00039896,31]
[394263263,1763412640680,-500.0,0.00039896,31]
[394263264,1763412640690,-11490.5603175,0.00039897,2]
[394263265,1763412640699,-3429.3277925,0.00039897,2]
[394263266,1763412640709,-3038.2947583,0.00039897,2]
[394263267,1763412640719,-26775.89899283,0.00039897,2]
[394263268,1763412640732,-114.36808517,0.00039897,2]
[394263269,1763412640742,-78516.5417448,0.00039897,2]
[394263270,1763412640752,-7873.72438515,0.0003993,15]
[394263271,1763412640761,-50000.0,0.0004,40]
[394263272,1763412640771,-150.0,0.00040042,7]
[394263273,1763412640780,-7873.72438515,0.00040063,15]
[394263274,1763412640790,-7873.72438515,0.00040196,15]
[394263275,1763412640800,-150.0,0.00040247,7]
[394263276,1763412640809,-1865.28100441,0.00040273,20]
[394263277,1763412640819,-7873.72438515,0.00040329,15]
[394263278,1763412640828,-622.15624909,0.00040421,5]
[394263279,1763412640838,-7873.72438515,0.00040463,15]
[394263280,1763412640848,-488.61,0.00040548,2]
[394263281,1763412640857,-7873.72438515,0.00040596,15]
[394263282,1763412640867,-830.85,0.00040685,2]
[394263283,1763412640876,-169.45,0.00040685,2]
[394263284,1763412640888,-338.9,0.00040685,2]
[394263285,1763412640898,-169.45,0.00040685,2]
[394263286,1763412640908,-338.9,0.00040685,2]
[394263287,1763412640924,-169.45,0.00040685,2]
[394263288,1763412640934,-169.45,0.00040685,2]
[394263289,1763412640944,-169.45,0.00040685,2]
[394263290,1763412640954,-169.45,0.00040685,2]
[394263291,1763412640964,-169.45,0.00040685,2]
[394263292,1763412640973,-169.45,0.00040685,2]
[394263293,1763412640983,-352.95,0.00040685,2]
[394263294,1763412640993,-169.45,0.00040685,2]
[394263295,1763412641002,-169.45,0.00040685,2]
[394263296,1763412641011,-338.8,0.00040685,2]
[394263297,1763412641021,-3332.07539816,0.0004069,2]
[394263298,1763412641030,-151.0,0.00040711,14]
[394263299,1763412641040,-1245.0,0.00040711,14]
[394263300,1763412641050,-151.0,0.00040711,14]
[394263301,1763412641059,-158.8583209,0.00040711,14]
[394263302,1763412641069,-1245.0,0.00040711,14]
[394263303,1763412641079,-151.0,0.00040711,14]
[394263304,1763412641089,-1245.0,0.00040711,14]
[394263305,1763412641098,-1245.0,0.00040711,14]
[394263306,1763412641179,-151.0,0.00040711,14]
[394263307,1763412641194,-151.0,0.00040711,14]